fUST/lending_fUST_20241006
["ID","MTS","AMOUNT","RATE_DAILY","PERIOD"]
[339956851,1728216643313,-500.0,0.00013698,2]
[339956853,1728216643324,-151.0,0.00013698,2]
[339956855,1728216643335,-151.0,0.00013698,2]
[339956856,1728216643345,-151.0,0.00013698,2]
[339956858,1728216643354,-151.0,0.00013698,2]
[339956861,1728216643364,-151.0,0.00013698,2]
[339956863,1728216643374,-151.0,0.00013698,2]
[339956866,1728216643383,-151.0,0.00013698,2]
[339956869,1728216643393,-500.0,0.00013698,2]
[339956871,1728216643403,-151.0,0.00013698,2]
[339956873,1728216643412,-151.0,0.00013698,2]
[339956875,1728216643422,-151.0,0.00013698,2]
[339956877,1728216643431,-151.0,0.00013698,2]
[339956878,1728216643441,-151.0,0.00013698,2]
[339956879,1728216643450,-151.0,0.00013698,2]
[339956880,1728216643460,-151.0,0.00013698,2]
[339956881,1728216643469,-500.0,0.00013698,2]
[339956883,1728216643478,-151.0,0.00013698,2]
[339956885,1728216643487,-151.0,0.00013698,2]
[339956887,1728216643496,-171.086207,0.00013698,2]
[339956889,1728216643506,-1426.854632,0.00013698,2]
[339956891,1728216643515,-1426.854632,0.00013698,2]
[339956893,1728216643524,-500.0,0.00013698,2]
[339956895,1728216643534,-1426.854632,0.00013698,2]
[339956897,1728216643543,-500.0,0.00013698,2]
[339956899,1728216643553,-1426.854632,0.00013698,2]
[339956900,1728216643563,-500.0,0.00013698,2]
[339956902,1728216643573,-1426.854632,0.00013698,2]
[339956904,1728216643582,-1426.854632,0.00013698,2]
[339956906,1728216643591,-1426.854632,0.00013698,2]
[339956908,1728216643600,-1426.854632,0.00013698,2]
[339956910,1728216643609,-556.6,0.00013698,2]
[339956912,1728216643619,-1426.854632,0.00013698,2]
[339956914,1728216643628,-1426.854632,0.00013698,2]
[339956916,1728216643638,-516.98,0.00013698,2]
[339956917,1728216643648,-1426.854632,0.00013698,2]
[339956919,1728216643657,-1426.854632,0.00013698,2]
[339956920,1728216643667,-1426.854632,0.00013698,2]
[339956921,1728216643676,-1426.854632,0.00013698,2]
[339956922,1728216643686,-500.0,0.00013698,2]
[339956923,1728216643696,-1426.854632,0.00013698,2]
[339956924,1728216643708,-1426.854634,0.00013698,2]
[339956925,1728216643717,-500.0,0.00013698,2]
[339956926,1728216643729,-669.98,0.00013698,2]
[339956927,1728216643739,-500.0,0.00013698,2]
[339956928,1728216643748,-500.0,0.00013698,2]
[339956929,1728216643759,-500.0,0.00013698,2]
[339956930,1728216643769,-500.0,0.00013698,2]
[339956931,1728216643781,-500.0,0.00013698,2]
[339956932,1728216643792,-647.39,0.00013698,2]
[339956933,1728216643804,-1063.99,0.00013698,2]
[339956934,1728216643815,-500.0,0.00013698,2]
[339956935,1728216643826,-500.0,0.00013698,2]
[339956936,1728216643837,-500.0,0.00013698,2]
[339956937,1728216643846,-500.0,0.00013698,2]
[339956938,1728216643858,-500.0,0.00013698,2]
[339956939,1728216643868,-500.0,0.00013698,2]
[339956940,1728216643877,-500.0,0.00013698,2]
[339956941,1728216643887,-500.0,0.00013698,2]
[339956942,1728216643898,-500.0,0.00013698,2]
[339956943,1728216643907,-500.0,0.00013698,2]
[339956944,1728216643916,-500.0,0.00013698,2]
[339956945,1728216643925,-1062.61,0.00013698,2]
[339956946,1728216643936,-500.0,0.00013698,2]
[339956947,1728216643944,-500.0,0.00013698,2]
[339956948,1728216643954,-500.0,0.00013698,2]
[339956949,1728216643963,-500.0,0.00013698,2]
[339956950,1728216643972,-500.0,0.00013698,2]
[339956951,1728216643981,-647.93,0.00013698,2]
[339956952,1728216643991,-500.0,0.00013698,2]
[339956953,1728216644000,-500.0,0.00013698,2]
[339956954,1728216644009,-500.0,0.00013698,2]
[339956955,1728216644017,-500.0,0.00013698,2]
[339956956,1728216644027,-500.0,0.00013698,2]
[339956957,1728216644036,-500.0,0.00013698,2]
[339956958,1728216644045,-500.0,0.00013698,2]
[339956959,1728216644054,-500.0,0.00013698,2]
[339956960,1728216644064,-500.0,0.00013698,2]
[339956961,1728216644073,-500.0,0.00013698,2]
[339956962,1728216644082,-500.0,0.00013698,2]
[339956963,1728216644092,-500.0,0.00013698,2]
[339956964,1728216644101,-500.0,0.00013698,2]
[339956965,1728216644110,-500.0,0.00013698,2]
[339956966,1728216644119,-500.0,0.00013698,2]
[339956967,1728216644128,-762.48,0.00013698,2]
[339956968,1728216644138,-500.0,0.00013698,2]
[339956969,1728216644148,-500.0,0.00013698,2]
[339956970,1728216644157,-509.06,0.00013698,2]
[339956971,1728216644166,-500.0,0.00013698,2]
[339956972,1728216644175,-500.0,0.00013698,2]
[339956973,1728216644184,-500.0,0.00013698,2]
[339956974,1728216644193,-500.0,0.00013698,2]
[339956975,1728216644202,-592.25,0.00013698,2]
[339956976,1728216644212,-500.0,0.00013698,2]
[339956977,1728216644221,-267.05383,0.00013698,2]
[339956978,1728216644230,-500.0,0.00013698,2]
[339956979,1728216644239,-267.05383,0.00013698,2]
[339956980,1728216644249,-267.05383,0.00013698,2]
[339956981,1728216644258,-267.05383,0.00013698,2]
[339956982,1728216644268,-267.05383,0.00013698,2]
[339956983,1728216644277,-500.0,0.00013698,2]
[339956984,1728216644286,-267.05383,0.00013698,2]
[339956985,1728216644295,-267.05383,0.00013698,2]
[339956986,1728216644304,-267.05383,0.00013698,2]
[339956987,1728216644313,-500.0,0.00013698,2]
[339956988,1728216644323,-151.0,0.00013698,2]
[339956989,1728216644332,-267.05383,0.00013698,2]
[339956990,1728216644341,-151.0,0.00013698,2]
[339956991,1728216644350,-191.162212,0.00013698,2]
[339956992,1728216644359,-151.0,0.00013698,2]
[339956993,1728216644368,-267.05383,0.00013698,2]
[339956994,1728216644378,-267.05383,0.00013698,2]
[339956995,1728216644387,-267.05383,0.00013698,2]
[339956996,1728216644397,-267.05383,0.00013698,2]
[339956997,1728216644407,-500.0,0.00013698,2]
[339956998,1728216644417,-267.05383,0.00013698,2]
[339956999,1728216644426,-267.05383,0.00013698,2]
[339957000,1728216644435,-267.05383,0.00013698,2]
[339957001,1728216644445,-595.08,0.00013698,2]
[339957002,1728216644454,-267.05383,0.00013698,2]
[339957003,1728216644463,-267.053833,0.00013698,2]
[339957004,1728216644473,-500.0,0.00013698,2]
[339957005,1728216644482,-500.0,0.00013698,2]
[339957006,1728216644491,-500.0,0.00013698,2]
[339957007,1728216644501,-500.0,0.00013698,2]
[339957008,1728216644511,-772.88,0.00013698,2]
[339957009,1728216644521,-500.0,0.00013698,2]
[339957010,1728216644530,-1000.0,0.00013698,2]
[339957011,1728216644540,-500.0,0.00013698,2]
[339957012,1728216644549,-500.0,0.00013698,2]
[339957013,1728216644559,-527.71,0.00013698,2]
[339957014,1728216644569,-795.54,0.00013698,2]
[339957015,1728216644578,-500.0,0.00013698,2]
[339957016,1728216644588,-500.0,0.00013698,2]
[339957017,1728216644598,-500.0,0.00013698,2]
[339957018,1728216644607,-501.63,0.00013698,2]
[339957019,1728216644617,-500.0,0.00013698,2]
[339957020,1728216644626,-500.0,0.00013698,2]
[339957021,1728216644636,-500.0,0.00013698,2]
[339957022,1728216644646,-500.0,0.00013698,2]
[339957023,1728216644656,-500.0,0.00013698,2]
[339957024,1728216644665,-500.0,0.00013698,2]
[339957025,1728216644675,-500.0,0.00013698,2]
[339957026,1728216644684,-500.0,0.00013698,2]
[339957027,1728216644694,-500.0,0.00013698,2]
[339957028,1728216644704,-514.51,0.00013698,2]
[339957029,1728216644714,-374.55537883,0.00013698,2]
[339957030,1728216644724,-500.0,0.00013698,2]
[339957031,1728216644733,-500.0,0.00013698,2]
[339957032,1728216644743,-500.0,0.00013698,2]
[339957033,1728216644752,-151.0,0.00013698,2]
[339957034,1728216644762,-500.0,0.00013698,2]
[339957035,1728216644771,-151.0,0.00013698,2]
[339957036,1728216644781,-151.0,0.00013698,2]
[339957037,1728216644790,-152.550169,0.00013698,2]
[339957038,1728216644800,-500.0,0.00013698,2]
[339957039,1728216644810,-500.0,0.00013698,2]
[339957040,1728216644819,-500.0,0.00013698,2]
[339957041,1728216644828,-1333.9,0.00013698,2]
[339957042,1728216644837,-516.62226847,0.00013698,2]
[339957043,1728216644848,-500.0,0.00013698,2]
[339957044,1728216644862,-500.0,0.00013698,2]
[339957045,1728216644873,-500.0,0.00013698,2]
[339957046,1728216644882,-580.43,0.00013698,2]
[339957047,1728216644892,-500.0,0.00013698,2]
[339957048,1728216644902,-500.0,0.00013698,2]
[339957049,1728216644911,-500.0,0.00013698,2]
[339957050,1728216644922,-741.04,0.00013698,2]
[339957051,1728216644931,-737.81,0.00013698,2]
[339957052,1728216644942,-183.00062632,0.00013698,2]
[339957053,1728216644951,-500.0,0.00013698,2]
[339957054,1728216644961,-500.0,0.00013698,2]
[339957055,1728216644971,-500.0,0.00013698,2]
[339957056,1728216644982,-500.0,0.00013698,2]
[339957057,1728216644992,-500.0,0.00013698,2]
[339957058,1728216645003,-500.0,0.00013698,2]
[339957059,1728216645013,-624.76,0.00013698,2]
[339957060,1728216645023,-500.0,0.00013698,2]
[339957061,1728216645033,-500.0,0.00013698,2]
[339957062,1728216645043,-500.0,0.00013698,2]
[339957063,1728216645053,-500.0,0.00013698,2]
[339957064,1728216645064,-502.01546196,0.00013698,2]
[339957065,1728216645075,-510.54,0.00013698,2]
[339957066,1728216645088,-500.0,0.00013698,2]
[339957067,1728216645099,-500.0,0.00013698,2]
[339957068,1728216645109,-500.0,0.00013698,2]
[339957069,1728216645120,-500.0,0.00013698,2]
[339957070,1728216645131,-192.851251,0.00013698,2]
[339957071,1728216645142,-333.34871468,0.00013698,2]
[339957072,1728216645152,-500.0,0.00013698,2]
[339957073,1728216645167,-159.51018359,0.00013698,2]
[339957074,1728216645178,-500.0,0.00013698,2]
[339957075,1728216645189,-805.17,0.00013698,2]
[339957076,1728216645201,-500.0,0.00013698,2]
[339957077,1728216645211,-500.0,0.00013698,2]
[339957078,1728216645222,-500.0,0.00013698,2]
[339957079,1728216645234,-500.0,0.00013698,2]
[339957080,1728216645245,-500.0,0.00013698,2]
[339957081,1728216645257,-500.0,0.00013698,2]
[339957082,1728216645267,-500.0,0.00013698,2]
[339957083,1728216645278,-500.0,0.00013698,2]
[339957084,1728216645290,-500.0,0.00013698,2]
[339957085,1728216645299,-500.0,0.00013698,2]
[339957086,1728216645309,-500.0,0.00013698,2]
[339957087,1728216645318,-500.0,0.00013698,2]
[339957088,1728216645328,-500.0,0.00013698,2]
[339957089,1728216645339,-500.0,0.00013698,2]
[339957090,1728216645349,-500.0,0.00013698,2]
[339957091,1728216645359,-151.0,0.00013698,2]
[339957092,1728216645369,-151.0,0.00013698,2]
[339957093,1728216645380,-151.0,0.00013698,2]
[339957094,1728216645391,-151.0,0.00013698,2]
[339957095,1728216645400,-151.0,0.00013698,2]
[339957096,1728216645411,-500.0,0.00013698,2]
[339957097,1728216645420,-500.0,0.00013698,2]
[339957098,1728216645586,-500.0,0.00013698,2]
[339957099,1728216645598,-151.0,0.00013698,2]
[339957100,1728216645608,-500.0,0.00013698,2]
[339957101,1728216645617,-151.0,0.00013698,2]
[339957102,1728216645627,-151.0,0.00013698,2]
[339957103,1728216645637,-151.0,0.00013698,2]
[339957104,1728216645655,-500.0,0.00013698,2]
[339957105,1728216645665,-205.716616,0.00013698,2]
[339957106,1728216645675,-504.48227088,0.00013698,2]
[339957107,1728216645685,-500.0,0.00013698,2]
[339957108,1728216645695,-500.0,0.00013698,2]
[339957109,1728216645707,-500.0,0.00013698,2]
[339957110,1728216645717,-500.0,0.00013698,2]
[339957111,1728216645727,-718.97,0.00013698,2]
[339957112,1728216645737,-736.07,0.00013698,2]
[339957113,1728216645747,-500.0,0.00013698,2]
[339957114,1728216645756,-1417.44,0.00013698,2]
[339957115,1728216645766,-501.34489225,0.00013698,2]
[339957116,1728216645775,-501.25792101,0.00013698,2]
[339957117,1728216645785,-500.0,0.00013698,2]
[339957118,1728216645795,-500.0,0.00013698,2]
[339957119,1728216645805,-1760.79,0.00013698,2]
[339957120,1728216645816,-500.0,0.00013698,2]
[339957121,1728216645825,-500.0,0.00013698,2]
[339957122,1728216645835,-500.0,0.00013698,2]
[339957123,1728216645845,-151.0,0.00013698,2]
[339957124,1728216645858,-151.0,0.00013698,2]
[339957125,1728216645867,-151.0,0.00013698,2]
[339957126,1728216645877,-151.0,0.00013698,2]
[339957127,1728216645886,-314.58418387,0.00013698,2]
[339957128,1728216645896,-151.0,0.00013698,2]
[339957129,1728216645906,-151.0,0.00013698,2]
[339957130,1728216645916,-151.0,0.00013698,2]
[339957131,1728216645926,-151.0,0.00013698,2]
[339957132,1728216645937,-643.02888453,0.00013698,2]
[339957133,1728216645946,-151.0,0.00013698,2]
[339957134,1728216645957,-500.0,0.00013698,2]
[339957135,1728216645967,-500.0,0.00013698,2]
[339957136,1728216645976,-151.0,0.00013698,2]
[339957137,1728216645986,-179.025152,0.00013698,2]
[339957138,1728216645996,-500.0,0.00013698,2]
[339957139,1728216646007,-500.0,0.00013698,2]
[339957140,1728216646017,-500.0,0.00013698,2]
[339957141,1728216646027,-662.96,0.00013698,2]
[339957142,1728216646036,-535.56,0.00013698,2]
[339957143,1728216646046,-1167.11,0.00013698,2]
[339957144,1728216646058,-500.0,0.00013698,2]
[339957145,1728216646067,-500.0,0.00013698,2]
[339957146,1728216646077,-500.0,0.00013698,2]
[339957147,1728216646088,-616.37,0.00013698,2]
[339957148,1728216646101,-500.0,0.00013698,2]
[339957149,1728216646113,-500.0,0.00013698,2]
[339957150,1728216646125,-500.0,0.00013698,2]
[339957152,1728216646136,-500.0,0.00013698,2]
[339957153,1728216646147,-458.30709146,0.00013698,2]
[339957155,1728216646158,-500.0,0.00013698,2]
[339957157,1728216646169,-500.0,0.00013698,2]
[339957158,1728216646181,-500.0,0.00013698,2]
[339957160,1728216646192,-500.0,0.00013698,2]
[339957162,1728216646202,-500.0,0.00013698,2]
[339957164,1728216646212,-500.0,0.00013698,2]
[339957165,1728216646224,-782.38,0.00013698,2]
[339957167,1728216646235,-834.35,0.00013698,2]
[339957169,1728216646246,-500.0,0.00013698,2]
[339957171,1728216646259,-500.0,0.00013698,2]
[339957173,1728216646270,-559.4,0.00013698,2]
[339957176,1728216646281,-511.36,0.00013698,2]
[339957178,1728216646293,-981.583802,0.00013698,2]
[339957179,1728216646302,-981.583802,0.00013698,2]
[339957181,1728216646312,-981.583802,0.00013698,2]
[339957183,1728216646323,-735.64,0.00013698,2]
[339957185,1728216646334,-876.938064,0.00013698,2]
[339957187,1728216646346,-981.583802,0.00013698,2]
[339957188,1728216646358,-876.938064,0.00013698,2]
[339957190,1728216646368,-981.583802,0.00013698,2]
[339957192,1728216646378,-638.31,0.00013698,2]
[339957194,1728216646388,-876.938064,0.00013698,2]
[339957196,1728216646400,-981.583802,0.00013698,2]
[339957197,1728216646410,-876.938064,0.00013698,2]
[339957199,1728216646420,-981.583802,0.00013698,2]
[339957201,1728216646430,-876.938064,0.00013698,2]
[339957202,1728216646441,-981.583802,0.00013698,2]
[339957203,1728216646452,-280.80375254,0.00013698,2]
[339957204,1728216647511,-301.24211674,0.00013673,2]
[339957225,1728217691259,207.55291212,0.00010209,2]
[339957279,1728217832690,-224.687235,0.00012,2]
[339957280,1728217832700,-254.7779334,0.00012303,2]
[339957281,1728217832710,-300.0,0.00012535,2]
[339957282,1728217832721,-300.0,0.00012535,2]
[339957283,1728217832730,-1079.0348316,0.00012536,2]
[339957293,1728217839100,-11634.58666777,0.00012536,2]
[339957294,1728217839120,-341.51697593,0.00012536,2]
[339957296,1728217840675,-3368.9022304,0.00012536,2]
[339957297,1728217840686,-250.0,0.00012551,2]
[339957298,1728217840697,-678.46622,0.0001292,2]
[339957299,1728217840708,-179.910563,0.00013418,2]
[339957300,1728217840719,-185.714984,0.00013418,2]
[339957301,1728217840731,-1000.0,0.00013525,2]
[339957302,1728217840744,-702.76727439,0.00013598,2]
[339957303,1728217840755,-2500.0,0.000136,2]
[339957304,1728217840767,-6057.98686308,0.0001362,2]
[339957305,1728217840779,-241.19175323,0.0001362,2]
[339957306,1728217840791,-500.0,0.00013673,2]
[339957307,1728217840805,-500.0,0.00013673,2]
[339957308,1728217840815,-500.0,0.00013673,2]
[339957309,1728217840827,-500.0,0.00013673,2]
[339957310,1728217840838,-500.0,0.00013673,2]
[339957311,1728217840850,-500.0,0.00013673,2]
[339957312,1728217840861,-500.0,0.00013673,2]
[339957313,1728217840871,-500.0,0.00013673,2]
[339957314,1728217840882,-500.0,0.00013673,2]
[339957315,1728217840893,-581.21492335,0.00013673,2]
[339957316,1728217840903,-500.0,0.00013673,2]
[339957317,1728217840915,-168.966,0.00013673,2]
[339957318,1728217840926,-88046.52124012,0.00013678,2]
[339957419,1728219031818,-226.191875,0.00012,2]
[339957421,1728219031828,-290.25887411,0.00012336,2]
[339957424,1728219031839,-331.7996959,0.00012503,2]
[339957426,1728219031851,-160.0,0.00013384,3]
[339957430,1728219031862,-164.682469,0.00013418,2]
[339957432,1728219031872,-185.247777,0.00013418,2]
[339957434,1728219031883,-478.846584,0.00013418,2]
[339957436,1728219031894,-159.615528,0.00013418,2]
[339957439,1728219031906,-164.682469,0.00013586,2]
[339957441,1728219031916,-478.846584,0.00013586,2]
[339957443,1728219031926,-159.615528,0.00013586,2]
[339957445,1728219031937,-632.49054696,0.00013597,2]
[339957447,1728219031948,-300.0,0.00013597,2]
[339957449,1728219031958,-300.0,0.00013597,2]
[339957451,1728219031968,-500.02206905,0.000136,2]
[339957454,1728219031983,-1234.36458362,0.000136,2]
[339957501,1728219039954,-3265.61334733,0.000136,2]
[339957503,1728219039963,-185.247777,0.00013642,2]
[339957505,1728219039975,-10174.69521624,0.00013653,2]
[339957508,1728219039986,-183.046,0.00013667,2]
[339957510,1728219039996,-174197.84506529,0.0001367,2]
[339957512,1728219040010,-725.42256728,0.0001367,2]
[339957608,1728219042920,-1928.32663709,0.0001367,2]
[339957609,1728219043030,-3123.11441051,0.0001367,2]
[339957614,1728219045857,-65442.22982248,0.0001367,2]
[339957626,1728219657221,54637.7818877,0.0001,2]
[339957709,1728220238068,-185.133605,0.00011933,2]
[339957710,1728220238078,-227.613917,0.00012,2]
[339957711,1728220238089,-3000.0,0.00012478,2]
[339957713,1728220238101,-250.0,0.00012575,2]
[339957714,1728220238115,-185.133605,0.00013189,2]
[339957715,1728220238124,-525.0,0.00013316,2]
[339957716,1728220238135,-1218.0,0.00013316,2]
[339957717,1728220238147,-447.994793,0.00013418,2]
[339957718,1728220238160,-325.72391222,0.00013573,2]
[339957719,1728220238172,-447.994793,0.00013586,2]
[339957720,1728220238183,-300.0,0.00013597,2]
[339957721,1728220238194,-569.2414923,0.00013598,2]
[339957722,1728220238205,-24845.49692252,0.0001367,2]
[339957723,1728220238240,-56386.926644,0.0001367,2]
[339957760,1728220246141,-57872.74702483,0.0001367,2]
[339957761,1728220246151,-300.0,0.00013671,2]
[339957762,1728220246162,-500.0,0.00013673,2]
[339957763,1728220246174,-599.31890859,0.00013673,2]
[339957764,1728220246187,-33.43211761,0.00013673,2]
[339957780,1728220439937,5000.0,0.00010209,2]
[339957781,1728220447820,5000.0,0.00010209,2]
[339957782,1728220471470,1545.35850781,0.00010209,2]
[339957783,1728220479385,4697.60819836,0.00010209,2]
[339957791,1728220860635,5352.0256237,9.79e-05,2]
[339957796,1728220941442,225.9301422,9.79e-05,2]
[339957800,1728221282633,24900.0,9.804e-05,2]
[339957801,1728221316172,191.986924,0.00010054,2]
[339957802,1728221316408,191.986924,0.00010057,2]
[339957803,1728221316611,191.986924,0.00010059,2]
[339957804,1728221317028,191.986924,0.00010062,2]
[339957805,1728221317246,191.986924,0.00010065,2]
[339957806,1728221317700,191.986924,0.00010067,2]
[339957807,1728221317757,191.986924,0.0001007,2]
[339957808,1728221317901,191.986924,0.00010072,2]
[339957809,1728221318315,191.986924,0.00010075,2]
[339957810,1728221318524,191.986924,0.00010078,2]
[339957811,1728221318743,191.986924,0.0001008,2]
[339957812,1728221318978,191.986924,0.00010083,2]
[339957813,1728221319174,191.986924,0.00010086,2]
[339957814,1728221319391,191.986924,0.00010088,2]
[339957815,1728221319594,191.986924,0.00010091,2]
[339957816,1728221319841,191.986924,0.00010094,2]
[339957817,1728221320513,191.986924,0.00010096,2]
[339957818,1728221320641,191.986924,0.00010099,2]
[339957819,1728221320711,191.986924,0.00010102,2]
[339957820,1728221320927,191.986924,0.00010104,2]
[339957821,1728221322108,3000.0,0.00010032,2]
[339957822,1728221326199,250.0,0.00010197,2]
[339957823,1728221332952,185.133605,9.081e-05,2]
[339957824,1728221333586,185.133605,0.00010037,2]
[339957876,1728221432279,-250.0,0.00010225,2]
[339957877,1728221432291,-250.0,0.00010253,2]
[339957878,1728221432312,-250.0,0.00010281,2]
[339957879,1728221432324,-250.0,0.00010309,2]
[339957880,1728221432335,-250.0,0.00010337,2]
[339957881,1728221432345,-250.0,0.00010365,2]
[339957882,1728221432355,-250.0,0.00010393,2]
[339957883,1728221432365,-250.0,0.00010421,2]
[339957884,1728221432375,-150.669475,0.00010433,2]
[339957901,1728221438274,-178.77943867,0.00010433,2]
[339957902,1728221438285,-250.0,0.00010449,2]
[339957903,1728221438298,-250.0,0.00010477,2]
[339957904,1728221438308,-250.0,0.00010489,2]
[339957905,1728221438318,-250.0,0.00010505,2]
[339957906,1728221438331,-3362.978267,0.00010513,2]
[339957907,1728221438341,-250.0,0.00010533,2]
[339957908,1728221438353,-250.0,0.00010561,2]
[339957909,1728221438365,-250.0,0.00010589,2]
[339957910,1728221438375,-250.0,0.00010616,2]
[339957911,1728221438386,-250.0,0.00010644,2]
[339957912,1728221438397,-329.44891366,0.00010646,2]
[339957913,1728221438408,-250.0,0.00010672,2]
[339957914,1728221438419,-250.0,0.000107,2]
[339957915,1728221438430,-250.0,0.00010728,2]
[339957916,1728221438441,-300.0,0.00010753,2]
[339957917,1728221438451,-300.0,0.00010753,2]
[339957918,1728221438461,-1000.0,0.00010754,2]
[339957919,1728221438474,-172.43919626,0.00010858,2]
[339957920,1728221438483,-329.44891366,0.00010859,2]
[339957921,1728221438493,-188.61,0.00010959,2]
[339957922,1728221438504,-3604.7,0.00010959,2]
[339957923,1728221438516,-3003.92,0.00010959,2]
[339957924,1728221438528,-2503.26,0.00010959,2]
[339957925,1728221438539,-2086.05,0.00010959,2]
[339957926,1728221438550,-1738.38,0.00010959,2]
[339957927,1728221438561,-1448.65,0.00010959,2]
[339957928,1728221438573,-1207.21,0.00010959,2]
[339957929,1728221438583,-159.390537,0.00011185,2]
[339957930,1728221438594,-159.390537,0.00011203,2]
[339957931,1728221438604,-159.390537,0.00011222,2]
[339957932,1728221438614,-159.390537,0.00011241,2]
[339957933,1728221438625,-420.0,0.00011819,2]
[339957934,1728221438636,-420.0,0.00011828,2]
[339957935,1728221438646,-193.35630576,0.00011833,2]
[339957936,1728221438657,-266.863501,0.00012,2]
[339957937,1728221438667,-1421.98963817,0.00012322,2]
[339957938,1728221438677,-500.0,0.00012323,2]
[339957939,1728221438686,-2922.981381,0.000129,2]
[339957940,1728221438696,-587.0,0.00012991,2]
[339957941,1728221438707,-587.0,0.00013011,2]
[339957942,1728221438717,-4962.73930943,0.00013262,2]
[339957943,1728221438727,-273.984596,0.00013418,2]
[339957944,1728221438738,-198.388167,0.00013418,2]
[339957945,1728221438748,-153.0,0.00013507,2]
[339957946,1728221438759,-153.0,0.00013507,2]
[339957947,1728221438771,-153.0,0.00013507,2]
[339957948,1728221438781,-153.0,0.00013507,2]
[339957949,1728221438792,-614.63417832,0.00013578,2]
[339957950,1728221438812,-273.984596,0.00013586,2]
[339957951,1728221438821,-198.388167,0.00013586,2]
[339957952,1728221438831,-999.9954415,0.00013588,2]
[339957953,1728221438839,-29780.1105941,0.00013598,2]
[339957954,1728221438849,-183.046,0.00013599,2]
[339957955,1728221438858,-191.4688782,0.000136,2]
[339957956,1728221438867,-1000.0,0.000136,2]
[339957957,1728221438877,-151.0,0.00013642,2]
[339957958,1728221438886,-151.0,0.00013642,2]
[339957959,1728221438895,-34853.9943309,0.00013642,2]
[339957960,1728221438904,-15138.53998748,0.00013642,2]
[339957961,1728221438933,-3855.23469483,0.00013642,2]
[339957971,1728221440251,-3555.4592709,0.00010644,2]
[339957972,1728221440261,-45830.52242249,0.00013642,2]
[339957973,1728221440271,-6826.91407966,0.00013648,2]
[339957974,1728221440281,-8161.98902115,0.00013648,2]
[339957975,1728221440291,-34853.9943309,0.00013649,2]
[339957976,1728221440303,-64824.2971048,0.00013649,2]
[339957977,1728221440313,-151.0,0.00013653,2]
[339957978,1728221440323,-1243.854209,0.00013653,2]
[339957979,1728221440332,-1243.854209,0.00013653,2]
[339957980,1728221440343,-269.181332,0.00013653,2]
[339957981,1728221440353,-269.181332,0.00013653,2]
[339957982,1728221440362,-151.0,0.00013653,2]
[339957983,1728221440372,-151.0,0.00013653,2]
[339957984,1728221440382,-618.93435,0.00013653,2]
[339957985,1728221440391,-618.93435,0.00013653,2]
[339957986,1728221440401,-677.949768,0.00013653,2]
[339957987,1728221440411,-677.949768,0.00013653,2]
[339957988,1728221440421,-151.0,0.00013653,2]
[339957989,1728221440430,-178.139726,0.00013653,2]
[339957990,1728221440439,-1873.395411,0.00013653,2]
[339957991,1728221440449,-1873.395411,0.00013653,2]
[339957992,1728221440460,-783.545077,0.00013653,2]
[339957993,1728221440469,-151.0,0.00013653,2]
[339957994,1728221440479,-783.545077,0.00013653,2]